fUST/lending_fUST_20260311
["ID","MTS","AMOUNT","RATE_DAILY","PERIOD"]
[408198530,1773216628445,151.0,0.000102,120]
[408198549,1773216631820,-5000.0,2.58e-05,2]
[408198550,1773216631835,-286.39034303,2.608e-05,2]
[408198551,1773216631844,-1346.7642471,2.609e-05,2]
[408198553,1773216631853,-300.0,2.622e-05,2]
[408198555,1773216631862,-500.0,2.623e-05,2]
[408198557,1773216631872,-491.20152221,2.623e-05,2]
[408198559,1773216631881,-500.0,2.623e-05,2]
[408198561,1773216631890,-500.0,2.623e-05,2]
[408198563,1773216631899,-500.0,2.623e-05,2]
[408198565,1773216631908,-500.0,2.623e-05,2]
[408198567,1773216631917,-436.9849899,2.623e-05,2]
[408198570,1773216631928,-63.0150101,2.623e-05,2]
[408198572,1773216631939,-935.09402508,2.646e-05,2]
[408198574,1773216631950,-7096.458246,2.646e-05,2]
[408198576,1773216631960,-809.91138835,2.646e-05,2]
[408198920,1773216638287,-63939.77652566,2.646e-05,2]
[408198921,1773216638302,-183112.68805932,2.646e-05,2]
[408198931,1773216640229,-296.95309785,2.646e-05,2]
[408198932,1773216640270,-136095.11227994,2.646e-05,2]
[408198933,1773216640955,-4.47741652,2.646e-05,2]
[408198949,1773216645797,-11094.06760596,2.646e-05,2]
[408198950,1773216645840,-317.706,2.646e-05,2]
[408198951,1773216669016,151.0,0.000102,120]
[408198952,1773216709564,151.0,0.000102,120]
[408198954,1773216748427,151.0,0.000102,120]
[408198955,1773216788610,151.0,0.000102,120]
[408198956,1773216825875,151.0,0.000102,120]
[408198957,1773216868714,151.0,0.000102,120]
[408198958,1773216908474,151.0,0.000102,120]
[408198959,1773216949695,151.0,0.000102,120]
[408198960,1773216988360,151.0,0.000102,120]
[408198961,1773217028993,151.0,0.000102,120]
[408198962,1773217077819,151.0,0.000102,120]
[408198963,1773217115332,-2000.0,2.52e-05,2]
[408198964,1773217116697,-2000.0,2.52e-05,2]
[408198965,1773217117020,-1000.0,2.52e-05,2]
[408198966,1773217117048,-300.0,2.545e-05,2]
[408198967,1773217117080,-700.0,2.546e-05,2]
[408198968,1773217117564,-2000.0,2.546e-05,2]
[408198969,1773217117992,-2000.0,2.546e-05,2]
[408198970,1773217118283,-2000.0,2.546e-05,2]
[408198971,1773217118658,-2000.0,2.546e-05,2]
[408198972,1773217118937,-2000.0,2.546e-05,2]
[408198973,1773217119253,-2000.0,2.546e-05,2]
[408198974,1773217119590,-2000.0,2.546e-05,2]
[408198975,1773217119930,-2000.0,2.546e-05,2]
[408198976,1773217120262,-2000.0,2.546e-05,2]
[408198977,1773217120568,-2000.0,2.546e-05,2]
[408198978,1773217120983,-2000.0,2.546e-05,2]
[408198979,1773217121453,-2000.0,2.546e-05,2]
[408198980,1773217121909,-2000.0,2.546e-05,2]
[408198981,1773217121955,151.0,0.000102,120]
[408198982,1773217122710,-2000.0,2.546e-05,2]
[408198983,1773217123246,-2000.0,2.546e-05,2]
[408198984,1773217123274,-2000.0,2.546e-05,2]
[408198985,1773217123365,-2000.0,2.546e-05,2]
[408198986,1773217123685,-2000.0,2.546e-05,2]
[408198987,1773217124006,-2000.0,2.546e-05,2]
[408198988,1773217124313,-2000.0,2.546e-05,2]
[408198989,1773217124622,-2000.0,2.546e-05,2]
[408198990,1773217125213,-2000.0,2.546e-05,2]
[408198991,1773217145264,-2000.0,2.521e-05,2]
[408198992,1773217146258,-2000.0,2.521e-05,2]
[408198993,1773217146676,-1000.0,2.521e-05,2]
[408198994,1773217146699,-300.0,2.545e-05,2]
[408198995,1773217146728,-700.0,2.546e-05,2]
[408198996,1773217147165,-2000.0,2.546e-05,2]
[408198997,1773217147609,-2000.0,2.546e-05,2]
[408198998,1773217148036,-2000.0,2.546e-05,2]
[408198999,1773217148530,-2000.0,2.546e-05,2]
[408199000,1773217148806,-2000.0,2.546e-05,2]
[408199001,1773217149107,-2000.0,2.546e-05,2]
[408199002,1773217149423,-2000.0,2.546e-05,2]
[408199003,1773217149850,-2000.0,2.546e-05,2]
[408199004,1773217150358,-2000.0,2.546e-05,2]
[408199005,1773217150785,-2000.0,2.521e-05,2]
[408199006,1773217151128,-2000.0,2.521e-05,2]
[408199007,1773217151441,-1000.0,2.521e-05,2]
[408199008,1773217151471,-1000.0,2.546e-05,2]
[408199009,1773217151786,-2000.0,2.546e-05,2]
[408199010,1773217152113,-2000.0,2.546e-05,2]
[408199011,1773217153585,-2000.0,2.546e-05,2]
[408199012,1773217153923,-2000.0,2.546e-05,2]
[408199013,1773217154281,-2000.0,2.546e-05,2]
[408199014,1773217157212,-2000.0,2.546e-05,2]
[408199015,1773217158278,-2000.0,2.546e-05,2]
[408199016,1773217158499,-2000.0,2.546e-05,2]
[408199017,1773217159211,-2000.0,2.546e-05,2]
[408199018,1773217160727,-2000.0,2.546e-05,2]
[408199019,1773217165524,-1000.0,2.546e-05,2]
[408199020,1773217169140,151.0,0.000102,120]
[408199021,1773217183848,-2000.0,2.521e-05,2]
[408199022,1773217185501,-2000.0,2.521e-05,2]
[408199023,1773217185934,-1000.0,2.521e-05,2]
[408199024,1773217185961,-1000.0,2.546e-05,2]
[408199025,1773217186518,-2000.0,2.546e-05,2]
[408199026,1773217186596,-2000.0,2.546e-05,2]
[408199027,1773217186914,-2000.0,2.546e-05,2]
[408199028,1773217187415,-2000.0,2.546e-05,2]
[408199029,1773217187523,-2000.0,2.546e-05,2]
[408199030,1773217187877,-2000.0,2.546e-05,2]
[408199031,1773217188167,-2000.0,2.546e-05,2]
[408199032,1773217188491,-2000.0,2.546e-05,2]
[408199033,1773217188836,-2000.0,2.546e-05,2]
[408199034,1773217189141,-2000.0,2.546e-05,2]
[408199035,1773217189451,-2000.0,2.546e-05,2]
[408199036,1773217189774,-2000.0,2.546e-05,2]
[408199037,1773217190085,-2000.0,2.546e-05,2]
[408199038,1773217190428,-2000.0,2.546e-05,2]
[408199039,1773217190842,-2000.0,2.546e-05,2]
[408199040,1773217191169,-2000.0,2.546e-05,2]
[408199041,1773217191491,-2000.0,2.546e-05,2]
[408199042,1773217193936,-2000.0,2.546e-05,2]
[408199043,1773217196005,-2000.0,2.546e-05,2]
[408199044,1773217212003,151.0,0.000102,120]
[408199045,1773217233978,-500.0,2.521e-05,2]
[408199046,1773217249404,151.0,0.000102,120]
[408199047,1773217275812,-4000.0,2.521e-05,2]
[408199048,1773217289373,151.0,0.000102,120]
[408199049,1773217322054,151.0,0.000102,120]
[408199050,1773217352068,151.0,0.000102,120]
[408199051,1773217390466,151.0,0.000102,120]
[408199060,1773217427039,151.0,0.000102,120]
[408199061,1773217469319,151.0,0.000102,120]
[408199062,1773217509648,151.0,0.000102,120]
[408199063,1773217546193,151.0,0.000102,120]
[408199064,1773217566385,-5000.0,2.359e-05,2]
[408199065,1773217566410,-286.66149173,2.371e-05,2]
[408199066,1773217566434,-213.33850827,2.383e-05,2]
[408199067,1773217585843,151.0,0.000102,120]
[408199068,1773217595341,-1500.0,2.312e-05,2]
[408199069,1773217620260,-3500.0,2.312e-05,2]
[408199070,1773217620283,-3700.0,2.335e-05,2]
[408199071,1773217622121,151.0,0.000102,120]
[408199072,1773217635013,-2667.16295319,2.312e-05,2]
[408199073,1773217635042,-1300.0,2.335e-05,2]
[408199074,1773217635065,-658.55785135,2.359e-05,2]
[408199075,1773217635089,-586.66149173,2.383e-05,2]
[408199076,1773217635115,-300.0,2.447e-05,2]
[408199077,1773217635136,-800.0,2.448e-05,2]
[408199078,1773217635157,-394.50458116,2.481e-05,2]
[408199079,1773217635180,-173.17797892,2.512e-05,2]
[408199080,1773217635202,-419.93514365,2.522e-05,2]
[408199081,1773217656047,-446.06485635,2.522e-05,2]
[408199082,1773217656071,-500.0,2.523e-05,2]
[408199083,1773217656093,-500.0,2.523e-05,2]
[408199084,1773217656119,-500.0,2.523e-05,2]
[408199085,1773217656142,-500.0,2.523e-05,2]
[408199086,1773217656164,-500.0,2.523e-05,2]
[408199087,1773217656186,-500.0,2.523e-05,2]
[408199088,1773217656208,-177.7816712,2.523e-05,2]
[408199089,1773217656229,-1647.4345476,2.542e-05,2]
[408199090,1773217656250,-190.139,2.545e-05,2]
[408199091,1773217656272,-161.84849338,2.546e-05,2]
[408199092,1773217656293,-200.0,2.546e-05,2]
[408199093,1773217659053,151.0,0.000102,120]
[408199094,1773217699377,151.0,0.000102,120]
[408199095,1773217738621,151.0,0.000102,120]
[408199099,1773217779582,151.0,0.000102,120]
[408199100,1773217818919,151.0,0.000102,120]
[408199101,1773217824194,-300.0,2.594e-05,2]
[408199102,1773217824222,-300.0,2.594e-05,2]
[408199103,1773217824242,-300.0,2.594e-05,2]
[408199104,1773217824254,-300.0,2.594e-05,2]
[408199105,1773217824266,-55.79753902,2.594e-05,2]
[408199359,1773217838191,-544.20246098,2.594e-05,2]
[408199360,1773217838200,-286.61700322,2.594e-05,2]
[408199361,1773217838210,-500.0,2.595e-05,2]
[408199362,1773217838219,-168.61607401,2.595e-05,2]
[408199363,1773217838228,-445.202766,2.595e-05,2]
[408199364,1773217838237,-500.0,2.595e-05,2]
[408199365,1773217838246,-500.0,2.595e-05,2]
[408199366,1773217838255,-500.0,2.595e-05,2]
[408199367,1773217838264,-500.0,2.595e-05,2]
[408199368,1773217838274,-500.0,2.595e-05,2]
[408199369,1773217838283,-162.380719,2.595e-05,2]
[408199370,1773217838292,-500.0,2.595e-05,2]
[408199371,1773217838302,-500.0,2.595e-05,2]
[408199372,1773217838311,-500.0,2.595e-05,2]
[408199373,1773217838320,-500.0,2.595e-05,2]
[408199374,1773217838329,-500.0,2.595e-05,2]
[408199375,1773217838339,-500.0,2.595e-05,2]
[408199376,1773217838348,-500.0,2.595e-05,2]
[408199377,1773217838357,-500.0,2.595e-05,2]
[408199378,1773217838366,-500.0,2.595e-05,2]
[408199379,1773217838375,-500.0,2.595e-05,2]
[408199380,1773217838384,-500.0,2.595e-05,2]
[408199381,1773217838393,-366.9193745,2.595e-05,2]
[408199382,1773217838402,-2150.738,2.595e-05,2]
[408199383,1773217838412,-537.6845,2.595e-05,2]
[408199384,1773217838421,-300.0,2.673e-05,2]
[408199385,1773217838431,-300.0,2.673e-05,2]
[408199386,1773217838440,-300.0,2.673e-05,2]
[408199387,1773217838449,-300.0,2.673e-05,2]
[408199388,1773217838459,-300.0,2.673e-05,2]
[408199389,1773217838468,-300.0,2.673e-05,2]
[408199390,1773217838477,-300.0,2.673e-05,2]
[408199391,1773217838487,-300.0,2.673e-05,2]
[408199392,1773217838496,-300.0,2.673e-05,2]
[408199393,1773217838505,-300.0,2.673e-05,2]
[408199394,1773217838515,-300.0,2.673e-05,2]
[408199395,1773217838524,-231.27244912,2.673e-05,2]
[408199396,1773217838536,-68.72755088,2.673e-05,2]
[408199397,1773217838546,-300.0,2.673e-05,2]
[408199398,1773217838555,-300.0,2.673e-05,2]
[408199399,1773217838565,-300.0,2.673e-05,2]
[408199400,1773217838574,-294.27135395,2.701e-05,2]
[408199401,1773217838585,-205.72864605,2.701e-05,2]
[408199402,1773217838595,-600.0,2.725e-05,2]
[408199403,1773217838605,-5194.27135395,2.74e-05,2]
[408199407,1773217841550,-55.94210537,2.74e-05,2]
[408199411,1773217843750,-4145.01304763,2.74e-05,2]
[408199413,1773217846013,-604.77349305,2.74e-05,2]
[408199414,1773217846023,-787.0,2.8e-05,2]
[408199415,1773217846032,-1647.4345476,2.816e-05,2]
[408199416,1773217846042,-2357.79233792,2.844e-05,2]
[408199417,1773217846052,-420.0,2.853e-05,2]
[408199418,1773217846061,-338.0,2.857e-05,2]
[408199419,1773217846070,-338.0,2.857e-05,2]
[408199420,1773217846080,-338.0,2.857e-05,2]
[408199421,1773217846093,-338.0,2.857e-05,2]
[408199422,1773217846103,-338.0,2.857e-05,2]
[408199423,1773217846112,-338.0,2.857e-05,2]
[408199424,1773217846121,-338.0,2.857e-05,2]
[408199425,1773217846132,-338.0,2.857e-05,2]
[408199426,1773217846141,-338.0,2.857e-05,2]
[408199427,1773217846150,-338.0,2.857e-05,2]
[408199428,1773217846159,-338.0,2.857e-05,2]
[408199429,1773217846169,-338.0,2.857e-05,2]
[408199430,1773217846178,-338.0,2.857e-05,2]
[408199431,1773217846187,-338.0,2.857e-05,2]
[408199432,1773217846196,-338.0,2.857e-05,2]
[408199433,1773217846206,-338.0,2.857e-05,2]
[408199434,1773217846217,-338.0,2.857e-05,2]
[408199435,1773217846227,-338.0,2.857e-05,2]
[408199436,1773217846237,-338.0,2.857e-05,2]
[408199437,1773217846246,-338.0,2.857e-05,2]
[408199438,1773217846256,-338.0,2.857e-05,2]
[408199439,1773217846269,-338.0,2.857e-05,2]
[408199440,1773217846279,-338.0,2.857e-05,2]
[408199441,1773217846288,-338.0,2.857e-05,2]
[408199442,1773217846298,-338.0,2.857e-05,2]
[408199443,1773217846307,-338.0,2.857e-05,2]
[408199444,1773217846317,-338.0,2.857e-05,2]
[408199445,1773217846326,-338.0,2.857e-05,2]
[408199446,1773217846336,-338.0,2.857e-05,2]
[408199447,1773217846348,-338.0,2.857e-05,2]
[408199448,1773217846357,-338.0,2.857e-05,2]
[408199449,1773217846367,-338.0,2.857e-05,2]
[408199450,1773217846378,-338.0,2.857e-05,2]
[408199451,1773217846387,-338.0,2.857e-05,2]
[408199452,1773217846398,-338.0,2.857e-05,2]
[408199453,1773217846407,-338.0,2.857e-05,2]
[408199454,1773217846416,-338.0,2.857e-05,2]
[408199455,1773217846425,-338.0,2.857e-05,2]
[408199456,1773217846435,-338.0,2.857e-05,2]
[408199457,1773217846444,-235.29539653,2.857e-05,2]
[408199458,1773217846453,-172.21719443,2.857e-05,2]
[408199459,1773217846463,-166.0,2.857e-05,2]
[408199460,1773217846472,-1402.396,2.876e-05,2]
[408199461,1773217846481,-2193.0,2.876e-05,2]
[408199462,1773217846490,-639.0,2.876e-05,2]
[408199463,1773217846500,-436.0,2.876e-05,2]
[408199464,1773217846509,-436.0,2.876e-05,2]
[408199465,1773217846519,-733.0,2.876e-05,2]
[408199466,1773217846528,-157.05,2.9e-05,2]
[408199467,1773217846538,-879.67093132,2.9e-05,2]
[408199468,1773217846548,-500.0,2.943e-05,2]
[408199469,1773217846557,-500.0,2.943e-05,2]
[408199470,1773217846566,-500.0,2.943e-05,2]
[408199471,1773217846576,-500.0,2.943e-05,2]
[408199472,1773217846585,-500.0,2.943e-05,2]
[408199473,1773217846594,-500.0,2.943e-05,2]
[408199474,1773217846603,-500.0,2.943e-05,2]
[408199475,1773217846612,-500.0,2.943e-05,2]
[408199476,1773217846622,-150.275,2.966e-05,2]
[408199477,1773217846631,-150.504,2.966e-05,2]
[408199478,1773217846640,-150.49,2.966e-05,2]
[408199479,1773217846649,-151.806,2.966e-05,2]
[408199480,1773217846659,-150.063,2.966e-05,2]
[408199481,1773217846667,-151.0,2.97e-05,2]
[408199482,1773217846677,-720.0,2.998e-05,2]
[408199483,1773217846687,-151.0,3e-05,2]
[408199484,1773217846696,-1000.0,3.071e-05,2]
[408199485,1773217846705,-359.95628777,3.091e-05,2]
[408199486,1773217866211,151.0,0.000102,120]
[408199487,1773217898040,151.0,0.000102,120]
[408199491,1773217939455,151.0,0.000102,120]
[408199495,1773217987225,151.0,0.000102,120]
[408199496,1773218028838,151.0,0.000102,120]
[408199497,1773218058525,151.0,0.000102,120]
[408199498,1773218086797,160.0,2.001e-05,2]
[408199499,1773218108296,160.0,2.001e-05,2]
[408199500,1773218109712,151.0,0.000102,120]
[408199501,1773218146603,151.0,0.000102,120]
[408199502,1773218153546,160.0,2.001e-05,2]
[408199503,1773218172394,160.0,2.001e-05,2]
[408199504,1773218188608,151.0,0.000102,120]
[408199505,1773218201499,239.0,2.001e-05,2]
[408199506,1773218236334,151.0,0.000102,120]
[408199508,1773218267871,151.0,0.000102,120]
[408199509,1773218311413,151.0,0.000102,120]
[408199510,1773218346790,151.0,0.000102,120]
[408199511,1773218395873,151.0,0.000102,120]
[408199512,1773218429889,151.0,0.000102,120]
[408199513,1773218469027,151.0,0.000102,120]
[408199514,1773218502039,151.0,0.000102,120]
[408199517,1773218546764,151.0,0.000102,120]
[408199518,1773218581819,151.0,0.000102,120]
[408199519,1773218618442,151.0,0.000102,120]
[408199520,1773218658990,151.0,0.000102,120]
[408199521,1773218706100,151.0,0.000102,120]
[408199522,1773218741885,151.0,0.000102,120]
[408199523,1773218781954,151.0,0.000102,120]
[408199525,1773218818518,151.0,0.000102,120]
[408199526,1773218848871,151.0,0.000102,120]
[408199527,1773218886505,151.0,0.000102,120]
[408199528,1773218928670,151.0,0.000102,120]
[408199529,1773218958988,151.0,0.000102,120]
[408199530,1773219000645,151.0,0.000102,120]
[408199611,1773219038249,-5000.0,2.203e-05,2]
[408199612,1773219038260,-5000.0,2.225e-05,2]
[408199613,1773219038270,-5000.0,2.247e-05,2]
[408199614,1773219038279,-300.0,2.314e-05,2]
[408199615,1773219038288,-286.7636396,2.351e-05,2]
[408199616,1773219038298,-500.0,2.493e-05,2]
[408199617,1773219038307,-500.0,2.493e-05,2]
[408199618,1773219038317,-500.0,2.493e-05,2]
[408199619,1773219038325,-500.0,2.493e-05,2]
[408199620,1773219038335,-512.45023678,2.493e-05,2]
[408199621,1773219038344,-500.0,2.493e-05,2]
[408199622,1773219038353,-500.0,2.493e-05,2]
[408199623,1773219038363,-500.0,2.493e-05,2]
[408199624,1773219038372,-500.0,2.493e-05,2]
[408199626,1773219038383,-500.0,2.493e-05,2]
[408199628,1773219038394,-500.18293884,2.493e-05,2]
[408199629,1773219038403,-354.08644102,2.493e-05,2]
[408199630,1773219038412,-115238.04923526,2.5e-05,2]
[408199631,1773219038422,-1602740.49577781,2.52e-05,2]
[408199632,1773219038433,-322.86507202,2.52e-05,2]
[408199633,1773219038443,-1778.61698137,2.52e-05,2]
[408199634,1773219038482,-232789.6141555,2.52e-05,2]
[408199635,1773219038494,-10228.95,2.52e-05,2]
[408199636,1773219038529,151.0,0.000102,120]
[408199647,1773219040390,-9450.85159951,2.52e-05,2]
[408199648,1773219040402,-354.69225279,2.52e-05,2]
[408199666,1773219043111,-6952.52808705,2.52e-05,2]
[408199667,1773219043164,-19105.53136537,2.52e-05,2]
[408199669,1773219046091,-1435.14,2.495e-05,2]
[408199672,1773219046249,-972.85665378,2.495e-05,2]
[408199674,1773219046258,-11651.93594128,2.52e-05,2]
[408199676,1773219071860,151.0,0.000102,120]
[408199677,1773219118286,151.0,0.000102,120]
[408199678,1773219162215,151.0,0.000102,120]
[408199680,1773219209287,151.0,0.000102,120]
[408199681,1773219256466,151.0,0.000102,120]
[408199682,1773219286601,151.0,0.000102,120]
[408199683,1773219325308,151.0,0.000102,120]
[408199684,1773219358089,151.0,0.000102,120]
[408199689,1773219398024,151.0,0.000102,120]
[408199690,1773219435052,1271.55970007,1.384e-05,2]
[408199691,1773219435511,1271.55970007,1.411e-05,7]
[408199692,1773219447744,151.0,0.000102,120]
[408199693,1773219465598,423.85323335,1.37e-05,2]
[408199694,1773219466068,423.85323335,1.397e-05,7]
[408199695,1773219466520,423.85323335,1.438e-05,14]
[408199696,1773219488919,151.0,0.000102,120]
[408199697,1773219526027,151.0,0.000102,120]
[408199698,1773219535719,-2000.0,2.373e-05,2]
[408199699,1773219537986,-1377.80501403,2.373e-05,2]
[408199700,1773219538009,-622.19498597,2.397e-05,2]
[408199701,1773219538318,-2000.0,2.397e-05,2]
[408199702,1773219538630,-2000.0,2.397e-05,2]
[408199703,1773219539385,-377.80501403,2.397e-05,2]
[408199704,1773219539406,-286.78976373,2.433e-05,2]
[408199705,1773219539428,-300.0,2.491e-05,2]
[408199706,1773219539450,-300.0,2.492e-05,2]
[408199707,1773219539472,-300.0,2.492e-05,2]
[408199708,1773219539493,-300.0,2.492e-05,2]
[408199709,1773219539515,-135.40522224,2.493e-05,2]
[408199710,1773219539542,-351.0114644,2.493e-05,2]
[408199711,1773219539561,-1648.9885356,2.495e-05,2]
[408199712,1773219539587,-365.35919281,2.495e-05,2]
[408199713,1773219539607,-1634.64080719,2.495e-05,2]
[408199714,1773219539937,-1411.56909145,2.495e-05,2]
[408199715,1773219539958,-588.43090855,2.518e-05,2]
[408199716,1773219540247,-145.29729335,2.518e-05,2]
[408199717,1773219540266,-1854.70270665,2.6e-05,2]
[408199718,1773219540560,-2000.0,2.6e-05,2]
[408199719,1773219540881,-85.13967735,2.6e-05,2]
[408199720,1773219542264,300.0,2.494e-05,2]
[408199721,1773219565814,151.0,0.000102,120]
[408199722,1773219608652,151.0,0.000102,120]
[408199723,1773219624794,-1481.99221148,2.716e-05,2]
[408199724,1773219641904,151.0,0.000102,120]
[408199725,1773219685604,151.0,0.000102,120]
[408199726,1773219726070,151.0,0.000102,120]
[408199727,1773219728334,-700.0,2.493e-05,2]
[408199728,1773219743812,-2000.0,2.468e-05,2]
[408199729,1773219745093,-2000.0,2.468e-05,2]
[408199730,1773219745429,-1000.0,2.468e-05,2]
[408199731,1773219745450,-133.48610172,2.493e-05,2]
[408199732,1773219745471,-281.05396845,2.506e-05,2]
[408199733,1773219745492,-585.45992983,2.518e-05,2]
[408199734,1773219745777,-2000.0,2.518e-05,2]
[408199735,1773219746207,-1982.89272247,2.518e-05,2]
[408199739,1773219767951,151.0,0.000102,120]
[408199742,1773219805625,151.0,0.000102,120]
[408199743,1773219819121,-2000.0,2.518e-05,2]
[408199744,1773219819947,-2000.0,2.518e-05,2]
[408199745,1773219820276,-2000.0,2.518e-05,2]
[408199746,1773219820699,-2000.0,2.518e-05,2]
[408199747,1773219821149,-2000.0,2.518e-05,2]
[408199748,1773219821609,-2000.0,2.518e-05,2]
[408199749,1773219822115,-2000.0,2.518e-05,2]
[408199750,1773219822406,-2000.0,2.518e-05,2]
[408199751,1773219822728,-2000.0,2.518e-05,2]
[408199752,1773219823059,-621.0905324,2.518e-05,2]
[408199753,1773219839661,151.0,0.000102,120]
[408199754,1773219877738,151.0,0.000102,120]
[408199755,1773219885979,-2000.0,2.51e-05,2]
[408199756,1773219887157,-184.865203,2.51e-05,2]
[408199757,1773219916184,151.0,0.000102,120]
[408199761,1773219957637,151.0,0.000102,120]
[408199762,1773219994939,151.0,0.000102,120]
[408199777,1773220026050,151.0,0.000102,120]
[408199782,1773220066148,151.0,0.000102,120]
[408199783,1773220108705,151.0,0.000102,120]
[408199784,1773220146030,151.0,0.000102,120]
[408199785,1773220180373,151.0,0.000102,120]
[408199786,1773220203018,161.2,2e-05,2]
[408199787,1773220216673,151.0,0.000102,120]
[408199819,1773220232106,-161.2,2.2e-05,2]
[408199821,1773220232116,-300.0,2.507e-05,2]
[408199823,1773220232125,-343.41113859,2.508e-05,2]
[408199826,1773220232137,-9402.31623343,2.508e-05,2]
[408199953,1773220238286,-2023.93468441,2.508e-05,2]
[408199954,1773220238298,-11631.86556626,2.508e-05,2]
[408199955,1773220238308,-166.38341501,2.508e-05,2]
[408199956,1773220238317,-2541.74777768,2.676e-05,2]
[408199957,1773220238327,-500.0,2.683e-05,2]
[408199958,1773220238336,-500.0,2.683e-05,2]
[408199959,1773220238345,-500.0,2.683e-05,2]
[408199960,1773220238354,-779.99348531,2.704e-05,2]
[408199961,1773220238364,-155467.73220999,2.704e-05,2]
[408199962,1773220238376,-801.13,2.704e-05,2]
[408200065,1773220241420,-39.87475458,2.677e-05,2]
[408200130,1773220243438,-1254.35176523,2.677e-05,2]
[408200131,1773220243450,-1791.96385414,2.677e-05,2]
[408200132,1773220243548,-2014.39507082,2.677e-05,2]
[408200134,1773220246507,-6490.94619007,2.677e-05,2]
[408200135,1773220257800,151.0,0.000102,120]
[408200139,1773220306630,151.0,0.000102,120]
[408200154,1773220359172,151.0,0.000102,120]
[408200157,1773220392409,151.0,0.000102,120]
[408200160,1773220425875,151.0,0.000102,120]
[408200161,1773220469584,151.0,0.000102,120]
[408200162,1773220502173,151.0,0.000102,120]
[408200163,1773220535368,151.0,0.000102,120]
[408200164,1773220580534,151.0,0.000102,120]
[408200165,1773220616907,151.0,0.000102,120]
[408200166,1773220662450,151.0,0.000102,120]
[408200167,1773220701420,151.0,0.000102,120]
[408200168,1773220728661,151.0,0.000102,120]
[408200169,1773220777814,151.0,0.000102,120]
[408200170,1773220811868,151.0,0.000102,120]
[408200171,1773220841904,151.0,0.000102,120]
[408200172,1773220878672,151.0,0.000102,120]
[408200173,1773220925494,151.0,0.000102,120]
[408200174,1773220956145,151.0,0.000102,120]
[408200175,1773220991908,151.0,0.000102,120]
[408200176,1773221032080,151.0,0.000102,120]
[408200177,1773221068534,151.0,0.000102,120]
[408200178,1773221106150,151.0,0.000102,120]
[408200179,1773221139660,151.0,0.000102,120]
[408200180,1773221176003,151.0,0.000102,120]
[408200181,1773221217742,151.0,0.000102,120]
[408200182,1773221255687,151.0,0.000102,120]
[408200183,1773221285525,1062.8120219,1.596e-05,2]
[408200184,1773221301957,151.0,0.000102,120]
[408200185,1773221338297,151.0,0.000102,120]
[408200186,1773221378447,151.0,0.000102,120]
[408200187,1773221424319,-1396.78336769,2.45e-05,2]
[408200188,1773221426733,151.0,0.000102,120]
[408200203,1773221432266,-3603.21663231,2.45e-05,2]
[408200206,1773221432276,-279.55216173,2.463e-05,2]
[408200207,1773221432286,-571.2122281,2.5e-05,2]
[408200209,1773221432295,-300.0,2.552e-05,2]
[408200211,1773221432303,-542.0,2.552e-05,2]
[408200213,1773221432312,-500.0,2.553e-05,2]
[408200215,1773221432321,-500.0,2.553e-05,2]
[408200217,1773221432330,-500.0,2.553e-05,2]
[408200219,1773221432339,-500.0,2.553e-05,2]
[408200221,1773221432348,-500.0,2.553e-05,2]
[408200223,1773221432357,-2699.48874502,2.577e-05,2]
[408200283,1773221438482,-658.48422008,2.577e-05,2]
[408200284,1773221438493,-1119.51597385,2.577e-05,2]
[408200285,1773221438505,-4630.75608325,2.577e-05,2]
[408200286,1773221438535,-393.64591098,2.577e-05,2]